[Event "44th Badalona Open 2018"]
[Site "Badalona"]
[Date "2018.08.04"]
[Round "4"]
[White "Mut Company, Guillem Joan"]
[Black "Costa Trave, Jaume"]
[Result "1/2-1/2"]
[ECO "D08"]
[WhiteElo "1898"]
[BlackElo "1791"]
[Annotator "NA"]
[PlyCount "96"]
[EventDate "2018.08.01"]
[EventType "swiss"]
[EventCountry "ESP"]
[SourceTitle "playchess.com"]
[Source "ChessBase"]
[SourceQuality "1"]
[TimeControl "5400+30"]

1. d4 d5 2. c4 e5 {[%emt 0:12:46]} 3. dxe5 {[%emt 0:03:48]} d4 {[%emt 0:00:15]} 4. Nf3 {[%emt 0:00:15]} Nc6 {[%emt 0:00:16]} 5. a3 {[%emt 0:00:45]} Be6 {[%emt 0:01:12]} 6. Nbd2 {[%emt 0:00:14]} Nge7 {[%emt 0:00:30]} 7. Nb3 {[%emt 0:00:53]} Nf5 {[%emt 0:03:19]} 8. h4 {[%emt 0:01:39]} Bxc4 {[%emt 0:00:43]} 9. e4 {[%emt 0:00:59]} Bxf1 {[%emt 0:01:02]} 10. Kxf1 {[%emt 0:08:34]} Nfe7 {[%emt 0:07:03]} 11. h5 {[%emt 0:07:08]} f6 {[%emt 0:00:03]} 12. exf6 {[%emt 0:00:30]} gxf6 {[%emt 0:00:30]} 13. Bf4 {[%emt 0:16:39]} Nc8 {[%emt 0:04:20]} 14. Nfxd4 {[%emt 0:00:30]} Nxd4 {[%emt 0:00:52]} 15. Nxd4 {[%emt 0:07:22]} Qd7 {[%emt 0:04:39]} 16. Rc1 {[%emt 0:00:30]} Nd6 {[%emt 0:00:30]} 17. Bxd6 {[%emt 0:04:13]} Bxd6 {[%emt 0:02:26]} 18. Nf5 {[%emt 0:03:04]} O-O-O {[%emt 0:00:02]} 19. Nxd6+ {[%emt 0:00:30]} Qxd6 {[%emt 0:00:30]} 20. Qxd6 {[%emt 0:01:03]} Rxd6 {[%emt 0:11:20]} 21. Ke2 {[%emt 0:00:24]} Rg8 {[%emt 0:00:28]} 22. g3 {[%emt 0:02:16]} Re6 {[%emt 0:00:41]} 23. Kf3 {[%emt 0:02:37]} Rge8 {[%emt 0:00:30]} 24. Rc4 {[%emt 0:00:30]} Rf8 {[%emt 0:00:30]} 25. g4 {[%emt 0:03:56]} Rfe8 {[%emt 0:00:30]} 26. Rhc1 {[%emt 0:00:30]} c6 {[%emt 0:00:30]} 27. Ke3 {[%emt 0:00:30]} Re5 {[%emt 0:00:51]} 28. Kf3 {[%emt 0:02:09]} Kc7 {[%emt 0:01:15]} 29. Kf4 {[%emt 0:01:44]} R8e6 {[%emt 0:00:30]} 30. f3 {[%emt 0:00:48]} b6 {[%emt 0:02:16]} 31. Ke3 {[%emt 0:01:42]} Rd6 {[%emt 0:00:30]} 32. b4 {[%emt 0:00:47]} a5 {[%emt 0:00:17]} 33. bxa5 {[%emt 0:01:47]} Rxa5 {[%emt 0:00:30]} 34. a4 {[%emt 0:00:30]} c5 {[%emt 0:00:29]} 35. Ke2 {[%emt 0:02:41]} Kc6 {[%emt 0:01:33]} 36. Rb1 {[%emt 0:02:18]} h6 {[%emt 0:00:30]} 37. Ra1 {[%emt 0:00:30]} Kc7 {[%emt 0:00:49]} 38. Rd1 {[%emt 0:02:09]} Rxd1 {[%emt 0:01:09]} 39. Kxd1 {[%emt 0:00:48]} Kc6 {[%emt 0:00:00]} 40. Kd2 {[%emt 0:00:30]} b5 {[%emt 0:00:24]} 41. axb5+ {[%emt 0:00:16]} Kxb5 {[%emt 0:00:11]} 42. Rc1 {[%emt 0:00:44]} c4 {[%emt 0:01:00]} 43. Ke3 {[%emt 0:02:30]} Kc5 {[%emt 0:00:26]} 44. Rd1 {[%emt 0:04:37]} Ra3+ {[%emt 0:01:03]} 45. Ke2 {[%emt 0:00:30]} Ra2+ {[%emt 0:00:30]} 46. Ke3 {[%emt 0:02:24]} Ra3+ {[%emt 0:04:20]} 47. Ke2 {[%emt 0:00:37]} Ra2+ 48. Ke3 c3 1/2-1/2

[Event "44th Badalona Open 2018"]
[Site "Badalona"]
[Date "2018.08.04"]
[Round "4"]
[White "Van Malder, Klaus"]
[Black "Kruijf, Caspar"]
[Result "1/2-1/2"]
[ECO "A00"]
[WhiteElo "1813"]
[BlackElo "1918"]
[Annotator "NA"]
[PlyCount "47"]
[EventDate "2018.08.01"]
[EventType "swiss"]
[EventCountry "ESP"]
[SourceTitle "playchess.com"]
[Source "ChessBase"]
[SourceQuality "1"]
[TimeControl "5400+30"]

1. Nc3 {[%emt 0:00:00]} d5 {[%emt 0:00:00]} 2. e4 {[%emt 0:00:00]} d4 {[%emt 0:00:00]} 3. Nce2 {[%emt 0:00:00]} Nc6 {[%emt 0:00:17]} 4. Ng3 {[%emt 0:00:06]} e5 {[%emt 0:00:55]} 5. Nf3 {[%emt 0:00:19]} Be6 {[%emt 0:01:51]} 6. Bb5 {[%emt 0:00:45]} f6 {[%emt 0:00:44]} 7. d3 {[%emt 0:00:56]} Bb4+ {[%emt 0:00:26]} 8. Bd2 {[%emt 0:01:46]} Bxd2+ {[%emt 0:00:36]} 9. Qxd2 {[%emt 0:00:04]} Nge7 {[%emt 0:00:45]} 10. O-O {[%emt 0:01:23]} O-O {[%emt 0:05:49]} 11. Ba4 {[%emt 0:03:00]} Qd7 {[%emt 0:04:39]} 12. Rad1 {[%emt 0:07:38]} a6 {[%emt 0:04:54]} 13. Bb3 {[%emt 0:01:49]} Bxb3 {[%emt 0:01:39]} 14. axb3 {[%emt 0:00:06]} Rad8 {[%emt 0:03:06]} 15. Nh4 {[%emt 0:02:40]} Rde8 {[%emt 0:10:33]} 16. Qe2 {[%emt 0:06:22]} Qe6 {[%emt 0:03:50]} 17. h3 {[%emt 0:10:39]} Kh8 {[%emt 0:06:00]} 18. Nhf5 {[%emt 0:07:31]} Nxf5 {[%emt 0:03:08]} 19. exf5 {[%emt 0:02:28]} Qd7 {[%emt 0:02:42]} 20. Qe4 {[%emt 0:01:26]} b6 {[%emt 0:04:52]} 21. Rde1 {[%emt 0:03:47]} a5 {[%emt 0:03:01]} 22. Kh2 {[%emt 0:01:24]} Ne7 {[%emt 0:02:25]} 23. Qg4 {[%emt 0:04:22]} Nd5 {[%emt 0:04:41]} 24. h4 {[%emt 0:11:55]} 1/2-1/2

[Event "44th Badalona Open 2018"]
[Site "Badalona"]
[Date "2018.08.05"]
[Round "5"]
[White "Ootes, Lars"]
[Black "Deshpande, Aniruddha"]
[Result "0-1"]
[ECO "A28"]
[WhiteElo "2378"]
[BlackElo "2179"]
[Annotator "NA"]
[PlyCount "78"]
[EventDate "2018.08.01"]
[EventType "swiss"]
[EventCountry "ESP"]
[SourceTitle "playchess.com"]
[Source "ChessBase"]
[SourceQuality "1"]
[TimeControl "5400+30"]

1. c4 e5 {[%emt 0:06:18]} 2. Nc3 {[%emt 0:00:00]} Nf6 {[%emt 0:00:10]} 3. Nf3 {[%emt 0:00:17]} Nc6 {[%emt 0:09:06]} 4. e3 {[%emt 0:00:22]} d6 {[%emt 0:00:30]} 5. d4 {[%emt 0:00:52]} Bg4 {[%emt 0:00:42]} 6. Be2 {[%emt 0:08:51]} Be7 {[%emt 0:07:18]} 7. h3 {[%emt 0:05:49]} Bh5 {[%emt 0:02:04]} 8. g4 {[%emt 0:24:22]} Bg6 {[%emt 0:11:15]} 9. Nh4 {[%emt 0:01:27]} Ne4 {[%emt 0:00:11]} 10. Nxg6 {[%emt 0:01:32]} Nxc3 11. bxc3 {[%emt 0:01:34]} hxg6 {[%emt 0:06:25]} 12. Rb1 {[%emt 0:00:30]} Na5 {[%emt 0:04:10]} 13. Qa4+ {[%emt 0:07:58]} c6 {[%emt 0:23:25]} 14. Ba3 {[%emt 0:24:24]} exd4 {[%emt 0:02:09]} 15. cxd4 {[%emt 0:07:22]} d5 16. Bxe7 {[%emt 0:00:39]} Kxe7 {[%emt 0:00:45]} 17. Qb4+ {[%emt 0:00:30]} Kf6 {[%emt 0:01:29]} 18. Rg1 {[%emt 0:06:18]} g5 19. Rg3 {[%emt 0:02:34]} g6 {[%emt 0:01:11]} 20. cxd5 {[%emt 0:01:11]} Qxd5 {[%emt 0:09:52]} 21. e4 {[%emt 0:00:30]} Qxe4 {[%emt 0:01:56]} 22. Re3 {[%emt 0:01:16]} c5 {[%emt 0:04:58]} 23. Qb5 {[%emt 0:01:33]} Qc2 {[%emt 0:00:30]} 24. Bd1 {[%emt 0:00:50]} Qxa2 {[%emt 0:01:34]} 25. Rb2 {[%emt 0:00:30]} Qa1 {[%emt 0:00:30]} 26. Rbe2 {[%emt 0:00:29]} Nc6 {[%emt 0:02:31]} 27. Rf3+ {[%emt 0:00:30]} Kg7 {[%emt 0:00:02]} 28. Rxf7+ {[%emt 0:00:50]} Kxf7 {[%emt 0:02:04]} 29. Qxb7+ {[%emt 0:00:14]} Kf6 30. Qxc6+ {[%emt 0:00:41]} Kg7 {[%emt 0:00:04]} 31. Re6 {[%emt 0:00:56]} Qc3+ {[%emt 0:01:00]} 32. Ke2 {[%emt 0:00:30]} Qc4+ {[%emt 0:00:30]} 33. Ke1 {[%emt 0:00:00]} Qxe6+ {[%emt 0:00:32]} 34. Qxe6 {[%emt 0:00:20]} Rhe8 {[%emt 0:00:06]} 35. d5 {[%emt 0:00:18]} Rxe6+ {[%emt 0:00:30]} 36. dxe6 {[%emt 0:00:30]} Kf6 {[%emt 0:00:02]} 37. Bb3 {[%emt 0:00:00]} Re8 {[%emt 0:00:12]} 38. Kd2 {[%emt 0:00:00]} Rxe6 {[%emt 0:00:30]} 39. Bxe6 {[%emt 0:00:16]} Kxe6 {[%emt 0:00:00]} 0-1

[Event "44th Badalona Open 2018"]
[Site "Badalona"]
[Date "2018.08.05"]
[Round "5"]
[White "Verstraeten, Reinaert"]
[Black "Narciso Dublan, Marc"]
[Result "1/2-1/2"]
[ECO "A41"]
[WhiteElo "2303"]
[BlackElo "2483"]
[Annotator "ChessBase"]
[PlyCount "95"]
[EventDate "2018.08.01"]
[EventType "swiss"]
[EventCountry "ESP"]
[SourceTitle "playchess.com"]
[Source "ChessBase"]
[SourceQuality "1"]
[TimeControl "5400+30"]

1. d4 d6 {[%emt 0:02:06]} 2. Nf3 {[%emt 0:00:00]} Bg4 {[%emt 0:00:15]} 3. c4 {[%emt 0:01:25]} g6 {[%emt 0:00:26]} 4. Nc3 {[%emt 0:01:32]} Bg7 5. g3 {[%emt 0:00:07]} Bxf3 {[%emt 0:00:49]} 6. exf3 {[%emt 0:02:59]} e6 {[%emt 0:04:28]} 7. d5 {[%emt 0:09:27]} Ne7 {[%emt 0:01:26]} 8. Bg2 {[%emt 0:02:06]} O-O {[%emt 0:00:43]} 9. f4 {[%emt 0:10:28]} exd5 10. Nxd5 {[%emt 0:00:08]} Nxd5 {[%emt 0:01:25]} 11. Bxd5 {[%emt 0:00:10]} Re8+ {[%emt 0:08:46]} 12. Kf1 c6 {[%emt 0:01:11]} 13. Bf3 {[%emt 0:00:48]} Nd7 {[%emt 0:02:39]} 14. Kg2 {[%emt 0:05:07]} Nb6 {[%emt 0:03:03]} 15. Qb3 {[%emt 0:16:47]} Qf6 {[%emt 0:33:55]} 16. a4 {[%emt 0:00:50]} Qe6 {[%emt 0:00:48]} 17. a5 {[%emt 0:01:37]} Nxc4 {[%emt 0:01:35]} 18. a6 bxa6 19. Bxc6 {[%emt 0:01:05]} Rab8 {[%emt 0:00:57]} 20. Qf3 {[%emt 0:03:22]} Re7 {[%emt 0:11:29]} 21. Rxa6 {[%emt 0:09:07]} Qc8 {[%emt 0:06:53]} 22. Ra4 {[%emt 0:01:36]} Rb3 23. Qxb3 {[%emt 0:14:17]} Qxc6+ {[%emt 0:00:36]} 24. Qf3 {[%emt 0:00:29]} Qxa4 {[%emt 0:00:51]} 25. b3 {[%emt 0:00:07]} Qa6 {[%emt 0:04:38]} 26. bxc4 {[%emt 0:06:43]} Qxc4 27. Ba3 Qe4 {[%emt 0:02:25]} 28. Bxd6 {[%emt 0:00:52]} Qxf3+ {[%emt 0:00:15]} 29. Kxf3 {[%emt 0:00:06]} Rd7 {[%emt 0:04:49]} 30. Be5 {[%emt 0:02:15]} a5 {[%emt 0:02:31]} 31. Ra1 Rd5 {[%emt 0:00:09]} 32. Ke4 {[%emt 0:04:32]} Rb5 33. Bxg7 {[%emt 0:02:16]} Kxg7 {[%emt 0:00:42]} 34. Kd4 {[%emt 0:00:00]} Kf6 {[%emt 0:03:00]} 35. Ra2 {[%emt 0:00:46]} g5 {[%emt 0:02:40]} 36. fxg5+ {[%emt 0:01:03]} Kxg5 {[%emt 0:01:34]} 37. Ke3 Kg4 {[%emt 0:00:19]} 38. Ra4+ {[%emt 0:00:39]} Kh3 {[%emt 0:00:01]} 39. Rh4+ {[%emt 0:00:27]} Kg2 {[%emt 0:01:01]} 40. Rxh7 {[%emt 0:02:55]} Rb3+ {[%emt 0:00:11]} 41. Ke4 {[%emt 0:01:51]} Rf3 42. Kd4 {[%emt 0:00:08]} Rxf2 {[%emt 0:01:15]} 43. Kc4 {[%emt 0:00:08]} Rf5 {[%emt 0:01:00]} 44. Kb3 Kf3 45. Ka4 {[%emt 0:00:51]} Kg4 {[%emt 0:00:46]} 46. Rg7+ {[%emt 0:00:11]} Kh3 {[%emt 0:00:14]} 47. Rh7+ {[%emt 0:00:02]} Kg4 {[%emt 0:00:12]} 48. Rg7+ 1/2-1/2

[Event "44th Badalona Open 2018"]
[Site "Badalona"]
[Date "2018.08.05"]
[Round "5"]
[White "Kruijf, Caspar"]
[Black "Malonda Rey, Albert"]
[Result "1/2-1/2"]
[ECO "C23"]
[WhiteElo "1918"]
[BlackElo "1682"]
[Annotator "NA"]
[PlyCount "76"]
[EventDate "2018.08.01"]
[EventType "swiss"]
[EventCountry "ESP"]
[SourceTitle "playchess.com"]
[Source "ChessBase"]
[SourceQuality "1"]
[TimeControl "5400+30"]

1. e4 {[%emt 0:00:00]} e5 {[%emt 0:00:00]} 2. Nf3 {[%emt 0:00:00]} Nc6 {[%emt 0:00:00]} 3. Bc4 {[%emt 0:00:00]} Bc5 {[%emt 0:02:13]} 4. c3 {[%emt 0:00:00]} d6 {[%emt 0:02:18]} 5. d4 {[%emt 0:00:02]} exd4 {[%emt 0:00:46]} 6. cxd4 {[%emt 0:00:06]} Bb6 {[%emt 0:01:21]} 7. Nc3 {[%emt 0:05:09]} h6 {[%emt 0:02:48]} 8. h3 {[%emt 0:01:33]} Nge7 {[%emt 0:05:41]} 9. Be3 {[%emt 0:04:08]} Ng6 {[%emt 0:05:05]} 10. O-O {[%emt 0:02:10]} a6 {[%emt 0:05:31]} 11. Qc2 {[%emt 0:03:11]} Nce7 {[%emt 0:05:23]} 12. Rfe1 {[%emt 0:07:37]} O-O {[%emt 0:01:12]} 13. Rad1 {[%emt 0:07:13]} Kh8 {[%emt 0:06:23]} 14. Qd2 {[%emt 0:02:28]} Kh7 {[%emt 0:05:31]} 15. Bd3 {[%emt 0:04:44]} c6 {[%emt 0:03:37]} 16. e5 {[%emt 0:04:25]} Bf5 {[%emt 0:06:18]} 17. g4 {[%emt 0:14:05]} Bxd3 {[%emt 0:00:54]} 18. Qxd3 {[%emt 0:00:07]} f5 {[%emt 0:17:11]} 19. g5 {[%emt 0:19:01]} dxe5 {[%emt 0:07:38]} 20. dxe5 {[%emt 0:02:17]} Qxd3 {[%emt 0:00:42]} 21. Rxd3 {[%emt 0:00:06]} Bxe3 {[%emt 0:01:23]} 22. Rdxe3 {[%emt 0:01:13]} Nf4 {[%emt 0:01:41]} 23. Kh2 {[%emt 0:04:03]} Rad8 {[%emt 0:02:07]} 24. e6 {[%emt 0:02:39]} Rd6 {[%emt 0:03:01]} 25. gxh6 {[%emt 0:02:14]} Kxh6 {[%emt 0:01:06]} 26. Ne5 {[%emt 0:02:15]} Rd2 {[%emt 0:03:15]} 27. Nc4 {[%emt 0:04:47]} Rd4 {[%emt 0:02:07]} 28. Ne5 {[%emt 0:01:14]} Rf6 {[%emt 0:01:39]} 29. Nf7+ {[%emt 0:01:18]} Kh7 {[%emt 0:01:07]} 30. Ne2 {[%emt 0:01:44]} Nxe2 {[%emt 0:01:21]} 31. R3xe2 {[%emt 0:00:35]} b5 {[%emt 0:01:23]} 32. Ng5+ {[%emt 0:01:09]} Kh6 {[%emt 0:00:29]} 33. Nf7+ {[%emt 0:00:52]} Kh7 {[%emt 0:00:10]} 34. Ng5+ {[%emt 0:00:18]} Kh6 {[%emt 0:00:07]} 35. Nf7+ {[%emt 0:00:35]} Kh7 36. Ng5+ Kg6 37. Rg1 Kh5 38. Nf7 Rg6 1/2-1/2

[Event "44th Badalona Open 2018"]
[Site "Badalona"]
[Date "2018.08.05"]
[Round "5"]
[White "Ruiz"]
[Black "Mut Company, Guillem Joan"]
[Result "0-1"]
[ECO "A06"]
[WhiteElo "1773"]
[BlackElo "1898"]
[Annotator "NA"]
[PlyCount "92"]
[EventDate "2018.08.01"]
[EventType "swiss"]
[EventCountry "ESP"]
[SourceTitle "playchess.com"]
[Source "ChessBase"]
[SourceQuality "1"]
[TimeControl "5400+30"]

1. Nf3 {[%emt 0:00:00]} d5 {[%emt 0:00:00]} 2. g3 {[%emt 0:00:00]} Nf6 {[%emt 0:00:13]} 3. Bg2 {[%emt 0:00:00]} c6 {[%emt 0:02:42]} 4. d3 {[%emt 0:00:07]} Bf5 {[%emt 0:00:35]} 5. Nbd2 {[%emt 0:00:19]} h6 {[%emt 0:01:58]} 6. O-O {[%emt 0:00:16]} e6 {[%emt 0:00:30]} 7. e4 {[%emt 0:00:30]} Bh7 {[%emt 0:00:30]} 8. Qe2 {[%emt 0:00:30]} Be7 {[%emt 0:04:25]} 9. e5 {[%emt 0:00:28]} Nfd7 {[%emt 0:00:30]} 10. Re1 {[%emt 0:00:30]} O-O {[%emt 0:03:17]} 11. Nf1 {[%emt 0:01:52]} c5 {[%emt 0:03:38]} 12. Bf4 {[%emt 0:02:38]} Nc6 13. h3 {[%emt 0:00:30]} Rc8 {[%emt 0:11:24]} 14. h4 {[%emt 0:01:20]} Re8 {[%emt 0:06:30]} 15. N1h2 {[%emt 0:06:51]} Nb6 {[%emt 0:06:15]} 16. Ng4 {[%emt 0:00:30]} Bf8 {[%emt 0:00:30]} 17. Bxh6 {[%emt 0:05:45]} gxh6 {[%emt 0:04:54]} 18. Nf6+ {[%emt 0:00:25]} Kh8 19. Ng5 {[%emt 0:01:31]} Bg6 {[%emt 0:04:46]} 20. h5 {[%emt 0:00:25]} hxg5 {[%emt 0:08:02]} 21. hxg6 {[%emt 0:00:30]} fxg6 {[%emt 0:01:57]} 22. Qg4 {[%emt 0:06:34]} Bh6 {[%emt 0:10:19]} 23. f4 {[%emt 0:03:44]} Nd7 {[%emt 0:00:30]} 24. Nxe8 {[%emt 0:01:24]} Qxe8 {[%emt 0:00:22]} 25. Qh3 {[%emt 0:08:53]} Kg7 26. Kf2 {[%emt 0:00:27]} Nd4 {[%emt 0:06:16]} 27. Rh1 {[%emt 0:00:30]} Qh8 {[%emt 0:02:21]} 28. Bxd5 {[%emt 0:12:48]} Nxe5 {[%emt 0:02:20]} 29. fxe5 {[%emt 0:09:11]} Rf8+ {[%emt 0:01:39]} 30. Kg2 {[%emt 0:00:25]} exd5 31. Qd7+ {[%emt 0:01:16]} Rf7 {[%emt 0:01:11]} 32. Qxd5 {[%emt 0:00:30]} Nxc2 {[%emt 0:00:10]} 33. Qxc5 {[%emt 0:04:39]} Nxa1 {[%emt 0:00:30]} 34. e6 {[%emt 0:01:48]} Qf8 {[%emt 0:00:23]} 35. Qe5+ {[%emt 0:00:25]} Rf6 {[%emt 0:00:51]} 36. Rf1 {[%emt 0:01:30]} Qe7 {[%emt 0:01:40]} 37. Rxa1 {[%emt 0:03:10]} Qxe6 {[%emt 0:00:30]} 38. Qc7+ {[%emt 0:01:02]} Rf7 {[%emt 0:01:05]} 39. Qc3+ {[%emt 0:01:17]} Qf6 {[%emt 0:00:08]} 40. Qc2 {[%emt 0:00:57]} Qf3+ {[%emt 0:00:59]} 41. Kg1 {[%emt 0:00:09]} Qxg3+ {[%emt 0:00:58]} 42. Kh1 {[%emt 0:00:06]} Qh3+ {[%emt 0:01:06]} 43. Kg1 {[%emt 0:00:00]} g4 44. Qc3+ {[%emt 0:00:25]} Kh7 {[%emt 0:00:38]} 45. Re1 Be3+ 46. Rxe3 Rf1# 0-1

[Event "44th Badalona Open 2018"]
[Site "Badalona"]
[Date "2018.08.07"]
[Round "7"]
[White "Narciso Dublan, Marc"]
[Black "Grafl, Florian"]
[Result "1-0"]
[ECO "B06"]
[WhiteElo "2483"]
[BlackElo "2359"]
[Annotator "RC"]
[PlyCount "149"]
[EventDate "2018.08.01"]
[EventType "swiss"]
[EventCountry "ESP"]
[SourceTitle "playchess.com"]
[Source "ChessBase"]
[SourceQuality "1"]
[TimeControl "5400+30"]

1. d4 {[%emt 0:00:00]} g6 2. e4 {[%emt 0:01:19]} Bg7 {[%emt 0:00:00]} 3. Nf3 {[%emt 0:01:00]} d6 {[%emt 0:00:00]} 4. Be2 {[%emt 0:00:34]} Nf6 {[%emt 0:00:07]} 5. Nbd2 {[%emt 0:00:52]} O-O {[%emt 0:01:30]} 6. O-O {[%emt 0:00:10]} Nbd7 {[%emt 0:03:09]} 7. c3 {[%emt 0:08:43]} e5 {[%emt 0:02:47]} 8. dxe5 {[%emt 0:00:30]} dxe5 {[%emt 0:01:13]} 9. Qc2 b6 10. a4 {[%emt 0:10:35]} Bb7 {[%emt 0:11:42]} 11. b4 {[%emt 0:01:25]} a6 {[%emt 0:09:11]} 12. Ba3 {[%emt 0:03:46]} Nh5 13. Rfe1 Nf4 {[%emt 0:02:50]} 14. Bf1 {[%emt 0:03:35]} Qf6 {[%emt 0:02:52]} 15. Nc4 {[%emt 0:07:38]} Rfe8 {[%emt 0:01:47]} 16. Rad1 {[%emt 0:12:19]} Rad8 {[%emt 0:00:04]} 17. Bc1 {[%emt 0:04:12]} g5 {[%emt 0:25:52]} 18. g3 {[%emt 0:01:53]} Ne6 {[%emt 0:00:12]} 19. Bg2 b5 20. axb5 {[%emt 0:10:19]} axb5 {[%emt 0:16:04]} 21. Ne3 {[%emt 0:00:12]} Nb6 {[%emt 0:06:22]} 22. h4 h6 23. hxg5 {[%emt 0:13:41]} hxg5 {[%emt 0:00:34]} 24. Qe2 Rxd1 {[%emt 0:07:04]} 25. Rxd1 {[%emt 0:08:18]} Rd8 26. Ng4 {[%emt 0:02:01]} Rxd1+ {[%emt 0:03:07]} 27. Qxd1 Qd8 {[%emt 0:03:30]} 28. Qxd8+ {[%emt 0:00:39]} Nxd8 29. Nfxe5 {[%emt 0:03:16]} Ne6 {[%emt 0:02:30]} 30. f4 {[%emt 0:00:13]} gxf4 {[%emt 0:00:29]} 31. gxf4 {[%emt 0:00:04]} Nf8 32. Be3 {[%emt 0:03:44]} Na4 {[%emt 0:01:55]} 33. Bd2 f6 34. Nd3 {[%emt 0:00:43]} f5 {[%emt 0:00:22]} 35. exf5 {[%emt 0:00:35]} Bxg2 {[%emt 0:00:06]} 36. Kxg2 {[%emt 0:00:09]} Bxc3 {[%emt 0:00:02]} 37. Be3 {[%emt 0:02:01]} Nb2 {[%emt 0:00:11]} 38. Nxb2 Bxb2 {[%emt 0:00:02]} 39. Ne5 {[%emt 0:00:54]} Nh7 40. Bd2 {[%emt 0:01:45]} Nf6 {[%emt 0:01:12]} 41. Kf3 {[%emt 0:00:10]} Bd4 {[%emt 0:00:54]} 42. Nc6 {[%emt 0:02:47]} Bg1 {[%emt 0:01:47]} 43. Be1 {[%emt 0:00:28]} Kf7 {[%emt 0:00:52]} 44. Bh4 {[%emt 0:00:03]} Ne8 {[%emt 0:00:51]} 45. Nd8+ {[%emt 0:01:07]} Kg7 {[%emt 0:00:27]} 46. Be7 {[%emt 0:00:11]} Bb6 47. Ke4 {[%emt 0:00:28]} Nf6+ {[%emt 0:01:17]} 48. Ke5 {[%emt 0:00:04]} Ng4+ {[%emt 0:00:24]} 49. Ke6 Bd4 {[%emt 0:00:04]} 50. Nc6 {[%emt 0:00:40]} Bf6 {[%emt 0:00:34]} 51. Bxf6+ {[%emt 0:01:05]} Nxf6 52. Ne5 {[%emt 0:00:58]} Nh5 {[%emt 0:00:54]} 53. Nd3 {[%emt 0:00:08]} c6 {[%emt 0:00:44]} 54. Ke7 {[%emt 0:00:28]} Nf6 {[%emt 0:00:08]} 55. Kd6 {[%emt 0:01:01]} Ne4+ {[%emt 0:00:03]} 56. Ke5 {[%emt 0:00:40]} Nf6 57. Kd6 {[%emt 0:00:33]} Ne4+ {[%emt 0:00:48]} 58. Ke6 Nf6 59. Ne5 {[%emt 0:00:48]} Nd5 {[%emt 0:00:27]} 60. f6+ {[%emt 0:00:10]} Nxf6 {[%emt 0:00:08]} 61. Nxc6 {[%emt 0:00:00]} Nh5 {[%emt 0:01:48]} 62. Ke5 Nf6 63. Nd4 {[%emt 0:00:51]} Nd7+ {[%emt 0:01:03]} 64. Ke6 {[%emt 0:01:08]} Nf8+ 65. Kd6 {[%emt 0:00:26]} Kf6 {[%emt 0:00:10]} 66. Nxb5 Ne6 {[%emt 0:00:45]} 67. Nc3 {[%emt 0:01:15]} Nd4 {[%emt 0:00:33]} 68. Kd5 Ne6 {[%emt 0:00:21]} 69. Ke4 {[%emt 0:01:17]} Ke7 {[%emt 0:00:08]} 70. Ke5 {[%emt 0:00:09]} Nd8 {[%emt 0:00:28]} 71. b5 Nf7+ {[%emt 0:00:15]} 72. Kd5 {[%emt 0:00:32]} Kd7 {[%emt 0:00:03]} 73. b6 {[%emt 0:00:54]} Nd6 {[%emt 0:00:43]} 74. Ne4 {[%emt 0:00:10]} Nc8 {[%emt 0:00:04]} 75. Nc5+ {[%emt 0:00:18]} 1-0

[Event "44th Badalona Open 2018"]
[Site "Badalona"]
[Date "2018.08.07"]
[Round "7"]
[White "Oliva Castaneda, Kevel"]
[Black "Verstraeten, Reinaert"]
[Result "1/2-1/2"]
[ECO "A48"]
[WhiteElo "2478"]
[BlackElo "2303"]
[Annotator "ChessBase"]
[PlyCount "30"]
[EventDate "2018.08.01"]
[EventType "swiss"]
[EventCountry "ESP"]
[SourceTitle "playchess.com"]
[Source "ChessBase"]
[SourceQuality "1"]
[TimeControl "5400+30"]

1. d4 Nf6 {[%emt 0:00:00]} 2. Nf3 {[%emt 0:00:00]} g6 {[%emt 0:00:00]} 3. Bf4 {[%emt 0:00:05]} Bg7 {[%emt 0:00:04]} 4. e3 {[%emt 0:00:08]} O-O {[%emt 0:00:09]} 5. Be2 {[%emt 0:00:03]} d6 {[%emt 0:00:08]} 6. h3 {[%emt 0:00:10]} Nbd7 {[%emt 0:01:03]} 7. O-O {[%emt 0:00:24]} Ne4 {[%emt 0:13:07]} 8. a4 {[%emt 0:09:51]} e5 {[%emt 0:00:30]} 9. Bh2 {[%emt 0:00:06]} f5 {[%emt 0:15:16]} 10. Na3 {[%emt 0:09:36]} exd4 {[%emt 0:01:09]} 11. Nxd4 {[%emt 0:00:32]} Ne5 {[%emt 0:00:30]} 12. c3 {[%emt 0:00:26]} Qe7 {[%emt 0:01:40]} 13. a5 {[%emt 0:03:08]} a6 {[%emt 0:02:26]} 14. Nc4 {[%emt 0:11:53]} Kh8 {[%emt 0:03:42]} 15. Qc2 {[%emt 0:12:40]} Bd7 1/2-1/2

[Event "44th Badalona Open 2018"]
[Site "Badalona"]
[Date "2018.08.07"]
[Round "7"]
[White "Sturt, Raven M"]
[Black "Aguero Jimenez, Luis Lazaro"]
[Result "0-1"]
[ECO "D00"]
[WhiteElo "2437"]
[BlackElo "2482"]
[Annotator "RC"]
[PlyCount "94"]
[EventDate "2018.08.01"]
[EventType "swiss"]
[EventCountry "ESP"]
[SourceTitle "playchess.com"]
[Source "ChessBase"]
[SourceQuality "1"]
[TimeControl "5400+30"]

1. d4 {[%emt 0:00:00]} d5 {[%emt 0:00:00]} 2. Bf4 {[%emt 0:00:00]} Bf5 {[%emt 0:00:00]} 3. e3 {[%emt 0:03:30]} e6 4. Nf3 {[%emt 0:05:53]} Nf6 {[%emt 0:00:00]} 5. Bd3 {[%emt 0:00:54]} Ne4 {[%emt 0:00:00]} 6. O-O {[%emt 0:08:27]} Bd6 {[%emt 0:03:44]} 7. Bxd6 {[%emt 0:10:28]} cxd6 8. Ne1 Qb6 {[%emt 0:07:16]} 9. b3 {[%emt 0:00:47]} Bg6 10. c4 {[%emt 0:06:48]} dxc4 {[%emt 0:01:56]} 11. bxc4 {[%emt 0:08:14]} Nc6 {[%emt 0:20:46]} 12. Qc2 {[%emt 0:00:43]} Nb4 {[%emt 0:02:53]} 13. Qa4+ Ke7 {[%emt 0:00:01]} 14. Bxe4 {[%emt 0:10:37]} Bxe4 {[%emt 0:01:18]} 15. Nc3 {[%emt 0:04:23]} Bg6 {[%emt 0:02:47]} 16. Nb5 {[%emt 0:01:12]} Na6 {[%emt 0:03:54]} 17. Nf3 {[%emt 0:00:35]} Rhc8 {[%emt 0:02:32]} 18. Rac1 {[%emt 0:02:43]} Nc7 {[%emt 0:05:26]} 19. Na3 {[%emt 0:01:24]} Ne8 {[%emt 0:01:02]} 20. Rc3 {[%emt 0:01:38]} Qc6 {[%emt 0:06:00]} 21. Qa5 {[%emt 0:08:37]} b6 {[%emt 0:09:10]} 22. Qb4 {[%emt 0:02:15]} a5 23. Qb5 Qxb5 {[%emt 0:00:44]} 24. Nxb5 {[%emt 0:00:32]} Nc7 25. Na3 {[%emt 0:11:25]} Nd5 {[%emt 0:02:02]} 26. Rb3 {[%emt 0:00:16]} Nb4 {[%emt 0:02:57]} 27. Rb2 {[%emt 0:00:24]} Bd3 {[%emt 0:00:47]} 28. Rc1 {[%emt 0:00:55]} d5 29. c5 {[%emt 0:00:08]} bxc5 {[%emt 0:01:46]} 30. dxc5 {[%emt 0:04:10]} Rc7 {[%emt 0:03:15]} 31. Nd2 {[%emt 0:01:56]} Rac8 {[%emt 0:04:10]} 32. Nb3 a4 {[%emt 0:00:00]} 33. Nd4 {[%emt 0:01:09]} Rxc5 34. Rxc5 {[%emt 0:00:09]} Rxc5 {[%emt 0:00:43]} 35. f3 {[%emt 0:02:30]} Rc3 36. Nab5 {[%emt 0:00:04]} Bxb5 {[%emt 0:06:32]} 37. Rxb4 Bd7 {[%emt 0:00:00]} 38. Kf2 {[%emt 0:02:15]} e5 {[%emt 0:00:00]} 39. Ne2 {[%emt 0:01:06]} Rc2 {[%emt 0:00:00]} 40. a3 {[%emt 0:00:14]} Ra2 {[%emt 0:00:06]} 41. h3 {[%emt 0:00:59]} Rxa3 {[%emt 0:00:30]} 42. f4 Rb3 {[%emt 0:00:08]} 43. Rxb3 {[%emt 0:01:11]} axb3 {[%emt 0:01:08]} 44. Nc3 b2 45. Nxd5+ {[%emt 0:01:44]} Kd8 {[%emt 0:00:44]} 46. Nc3 {[%emt 0:00:04]} Bf5 {[%emt 0:00:26]} 47. e4 {[%emt 0:00:04]} Bxe4 {[%emt 0:00:04]} 0-1